{"text_format":"1","workbook":"xlsx","n_sheets":2,"sheets":["התחלה וסיום","סך שעות"],"not_rendered":{"charts":0,"images":0,"macros":1,"external_links":0,"defined_names":0,"comments":0,"pivot_tables":0},"unopened":[],"bounds":{"document_bytes":16777216,"sheet_cells":100000,"rows_first":2000,"rows_last":500,"rows_between":2000,"halvings":0,"cell_chars":16384,"cell_head_chars":4096},"cells_cut":0,"cells_raw":0,"read":"whole","date_system":"1900"}

{"sheet":"התחלה וסיום","index":0,"n_rows":113,"n_cols":10,"rows_kept":113,"cut":false,"hidden":false,"merged":[[1,9,1,10],[2,9,3,10],[2,8,3,8],[111,0,111,2],[112,0,112,2],[0,0,1,2],[2,0,2,2],[2,6,3,7],[1,6,1,7]]}
["חישוב שעות עבודה לפי התחלה וסיום"]
[null,null,null,null,null,null,"סה\"כ שעות",null,"שכר לשעה","לתשלום"]
["לחיצה כפולה על תא תציג את השעה הנוכחית",null,null,null,null,null,{"$f":"SUM(טבלה1[סה\"כ])","v":0},null,30,{"$f":"I3*G3*24","v":0}]
["התחלה","סיום","סה\"כ","הערות","תאריך"]
[null,null,{"$f":"IF(טבלה1[[#This Row],[סיום]]=\"\",\"\",טבלה1[[#This Row],[סיום]]-טבלה1[[#This Row],[התחלה]]+(טבלה1[[#This Row],[סיום]]<טבלה1[[#This Row],[התחלה]]))","v":""}]
[null,null,{"$f":"IF(טבלה1[[#This Row],[סיום]]=\"\",\"\",טבלה1[[#This Row],[סיום]]-טבלה1[[#This Row],[התחלה]]+(טבלה1[[#This Row],[סיום]]<טבלה1[[#This Row],[התחלה]]))","v":""}]
[null,null,{"$f":"IF(טבלה1[[#This Row],[סיום]]=\"\",\"\",טבלה1[[#This Row],[סיום]]-טבלה1[[#This Row],[התחלה]]+(טבלה1[[#This Row],[סיום]]<טבלה1[[#This Row],[התחלה]]))","v":""}]
[null,null,{"$f":"IF(טבלה1[[#This Row],[סיום]]=\"\",\"\",טבלה1[[#This Row],[סיום]]-טבלה1[[#This Row],[התחלה]]+(טבלה1[[#This Row],[סיום]]<טבלה1[[#This Row],[התחלה]]))","v":""}]
[null,null,{"$f":"IF(טבלה1[[#This Row],[סיום]]=\"\",\"\",טבלה1[[#This Row],[סיום]]-טבלה1[[#This Row],[התחלה]]+(טבלה1[[#This Row],[סיום]]<טבלה1[[#This Row],[התחלה]]))","v":""}]
[null,null,{"$f":"IF(טבלה1[[#This Row],[סיום]]=\"\",\"\",טבלה1[[#This Row],[סיום]]-טבלה1[[#This Row],[התחלה]]+(טבלה1[[#This Row],[סיום]]<טבלה1[[#This Row],[התחלה]]))","v":""}]
[null,null,{"$f":"IF(טבלה1[[#This Row],[סיום]]=\"\",\"\",טבלה1[[#This Row],[סיום]]-טבלה1[[#This Row],[התחלה]]+(טבלה1[[#This Row],[סיום]]<טבלה1[[#This Row],[התחלה]]))","v":""}]
[null,null,{"$f":"IF(טבלה1[[#This Row],[סיום]]=\"\",\"\",טבלה1[[#This Row],[סיום]]-טבלה1[[#This Row],[התחלה]]+(טבלה1[[#This Row],[סיום]]<טבלה1[[#This Row],[התחלה]]))","v":""}]
[null,null,{"$f":"IF(טבלה1[[#This Row],[סיום]]=\"\",\"\",טבלה1[[#This Row],[סיום]]-טבלה1[[#This Row],[התחלה]]+(טבלה1[[#This Row],[סיום]]<טבלה1[[#This Row],[התחלה]]))","v":""}]
[null,null,{"$f":"IF(טבלה1[[#This Row],[סיום]]=\"\",\"\",טבלה1[[#This Row],[סיום]]-טבלה1[[#This Row],[התחלה]]+(טבלה1[[#This Row],[סיום]]<טבלה1[[#This Row],[התחלה]]))","v":""}]
[null,null,{"$f":"IF(טבלה1[[#This Row],[סיום]]=\"\",\"\",טבלה1[[#This Row],[סיום]]-טבלה1[[#This Row],[התחלה]]+(טבלה1[[#This Row],[סיום]]<טבלה1[[#This Row],[התחלה]]))","v":""}]
[null,null,{"$f":"IF(טבלה1[[#This Row],[סיום]]=\"\",\"\",טבלה1[[#This Row],[סיום]]-טבלה1[[#This Row],[התחלה]]+(טבלה1[[#This Row],[סיום]]<טבלה1[[#This Row],[התחלה]]))","v":""}]
[null,null,{"$f":"IF(טבלה1[[#This Row],[סיום]]=\"\",\"\",טבלה1[[#This Row],[סיום]]-טבלה1[[#This Row],[התחלה]]+(טבלה1[[#This Row],[סיום]]<טבלה1[[#This Row],[התחלה]]))","v":""}]
[null,null,{"$f":"IF(טבלה1[[#This Row],[סיום]]=\"\",\"\",טבלה1[[#This Row],[סיום]]-טבלה1[[#This Row],[התחלה]]+(טבלה1[[#This Row],[סיום]]<טבלה1[[#This Row],[התחלה]]))","v":""}]
[null,null,{"$f":"IF(טבלה1[[#This Row],[סיום]]=\"\",\"\",טבלה1[[#This Row],[סיום]]-טבלה1[[#This Row],[התחלה]]+(טבלה1[[#This Row],[סיום]]<טבלה1[[#This Row],[התחלה]]))","v":""}]
[null,null,{"$f":"IF(טבלה1[[#This Row],[סיום]]=\"\",\"\",טבלה1[[#This Row],[סיום]]-טבלה1[[#This Row],[התחלה]]+(טבלה1[[#This Row],[סיום]]<טבלה1[[#This Row],[התחלה]]))","v":""}]
[null,null,{"$f":"IF(טבלה1[[#This Row],[סיום]]=\"\",\"\",טבלה1[[#This Row],[סיום]]-טבלה1[[#This Row],[התחלה]]+(טבלה1[[#This Row],[סיום]]<טבלה1[[#This Row],[התחלה]]))","v":""}]
[null,null,{"$f":"IF(טבלה1[[#This Row],[סיום]]=\"\",\"\",טבלה1[[#This Row],[סיום]]-טבלה1[[#This Row],[התחלה]]+(טבלה1[[#This Row],[סיום]]<טבלה1[[#This Row],[התחלה]]))","v":""}]
[null,null,{"$f":"IF(טבלה1[[#This Row],[סיום]]=\"\",\"\",טבלה1[[#This Row],[סיום]]-טבלה1[[#This Row],[התחלה]]+(טבלה1[[#This Row],[סיום]]<טבלה1[[#This Row],[התחלה]]))","v":""}]
[null,null,{"$f":"IF(טבלה1[[#This Row],[סיום]]=\"\",\"\",טבלה1[[#This Row],[סיום]]-טבלה1[[#This Row],[התחלה]]+(טבלה1[[#This Row],[סיום]]<טבלה1[[#This Row],[התחלה]]))","v":""}]
[null,null,{"$f":"IF(טבלה1[[#This Row],[סיום]]=\"\",\"\",טבלה1[[#This Row],[סיום]]-טבלה1[[#This Row],[התחלה]]+(טבלה1[[#This Row],[סיום]]<טבלה1[[#This Row],[התחלה]]))","v":""}]
[null,null,{"$f":"IF(טבלה1[[#This Row],[סיום]]=\"\",\"\",טבלה1[[#This Row],[סיום]]-טבלה1[[#This Row],[התחלה]]+(טבלה1[[#This Row],[סיום]]<טבלה1[[#This Row],[התחלה]]))","v":""}]
[null,null,{"$f":"IF(טבלה1[[#This Row],[סיום]]=\"\",\"\",טבלה1[[#This Row],[סיום]]-טבלה1[[#This Row],[התחלה]]+(טבלה1[[#This Row],[סיום]]<טבלה1[[#This Row],[התחלה]]))","v":""}]
[null,null,{"$f":"IF(טבלה1[[#This Row],[סיום]]=\"\",\"\",טבלה1[[#This Row],[סיום]]-טבלה1[[#This Row],[התחלה]]+(טבלה1[[#This Row],[סיום]]<טבלה1[[#This Row],[התחלה]]))","v":""}]
[null,null,{"$f":"IF(טבלה1[[#This Row],[סיום]]=\"\",\"\",טבלה1[[#This Row],[סיום]]-טבלה1[[#This Row],[התחלה]]+(טבלה1[[#This Row],[סיום]]<טבלה1[[#This Row],[התחלה]]))","v":""}]
[null,null,{"$f":"IF(טבלה1[[#This Row],[סיום]]=\"\",\"\",טבלה1[[#This Row],[סיום]]-טבלה1[[#This Row],[התחלה]]+(טבלה1[[#This Row],[סיום]]<טבלה1[[#This Row],[התחלה]]))","v":""}]
[null,null,{"$f":"IF(טבלה1[[#This Row],[סיום]]=\"\",\"\",טבלה1[[#This Row],[סיום]]-טבלה1[[#This Row],[התחלה]]+(טבלה1[[#This Row],[סיום]]<טבלה1[[#This Row],[התחלה]]))","v":""}]
[null,null,{"$f":"IF(טבלה1[[#This Row],[סיום]]=\"\",\"\",טבלה1[[#This Row],[סיום]]-טבלה1[[#This Row],[התחלה]]+(טבלה1[[#This Row],[סיום]]<טבלה1[[#This Row],[התחלה]]))","v":""}]
[null,null,{"$f":"IF(טבלה1[[#This Row],[סיום]]=\"\",\"\",טבלה1[[#This Row],[סיום]]-טבלה1[[#This Row],[התחלה]]+(טבלה1[[#This Row],[סיום]]<טבלה1[[#This Row],[התחלה]]))","v":""}]
[null,null,{"$f":"IF(טבלה1[[#This Row],[סיום]]=\"\",\"\",טבלה1[[#This Row],[סיום]]-טבלה1[[#This Row],[התחלה]]+(טבלה1[[#This Row],[סיום]]<טבלה1[[#This Row],[התחלה]]))","v":""}]
[null,null,{"$f":"IF(טבלה1[[#This Row],[סיום]]=\"\",\"\",טבלה1[[#This Row],[סיום]]-טבלה1[[#This Row],[התחלה]]+(טבלה1[[#This Row],[סיום]]<טבלה1[[#This Row],[התחלה]]))","v":""}]
[null,null,{"$f":"IF(טבלה1[[#This Row],[סיום]]=\"\",\"\",טבלה1[[#This Row],[סיום]]-טבלה1[[#This Row],[התחלה]]+(טבלה1[[#This Row],[סיום]]<טבלה1[[#This Row],[התחלה]]))","v":""}]
[null,null,{"$f":"IF(טבלה1[[#This Row],[סיום]]=\"\",\"\",טבלה1[[#This Row],[סיום]]-טבלה1[[#This Row],[התחלה]]+(טבלה1[[#This Row],[סיום]]<טבלה1[[#This Row],[התחלה]]))","v":""}]
[null,null,{"$f":"IF(טבלה1[[#This Row],[סיום]]=\"\",\"\",טבלה1[[#This Row],[סיום]]-טבלה1[[#This Row],[התחלה]]+(טבלה1[[#This Row],[סיום]]<טבלה1[[#This Row],[התחלה]]))","v":""}]
[null,null,{"$f":"IF(טבלה1[[#This Row],[סיום]]=\"\",\"\",טבלה1[[#This Row],[סיום]]-טבלה1[[#This Row],[התחלה]]+(טבלה1[[#This Row],[סיום]]<טבלה1[[#This Row],[התחלה]]))","v":""}]
[null,null,{"$f":"IF(טבלה1[[#This Row],[סיום]]=\"\",\"\",טבלה1[[#This Row],[סיום]]-טבלה1[[#This Row],[התחלה]]+(טבלה1[[#This Row],[סיום]]<טבלה1[[#This Row],[התחלה]]))","v":""}]
[null,null,{"$f":"IF(טבלה1[[#This Row],[סיום]]=\"\",\"\",טבלה1[[#This Row],[סיום]]-טבלה1[[#This Row],[התחלה]]+(טבלה1[[#This Row],[סיום]]<טבלה1[[#This Row],[התחלה]]))","v":""}]
[null,null,{"$f":"IF(טבלה1[[#This Row],[סיום]]=\"\",\"\",טבלה1[[#This Row],[סיום]]-טבלה1[[#This Row],[התחלה]]+(טבלה1[[#This Row],[סיום]]<טבלה1[[#This Row],[התחלה]]))","v":""}]
[null,null,{"$f":"IF(טבלה1[[#This Row],[סיום]]=\"\",\"\",טבלה1[[#This Row],[סיום]]-טבלה1[[#This Row],[התחלה]]+(טבלה1[[#This Row],[סיום]]<טבלה1[[#This Row],[התחלה]]))","v":""}]
[null,null,{"$f":"IF(טבלה1[[#This Row],[סיום]]=\"\",\"\",טבלה1[[#This Row],[סיום]]-טבלה1[[#This Row],[התחלה]]+(טבלה1[[#This Row],[סיום]]<טבלה1[[#This Row],[התחלה]]))","v":""}]
[null,null,{"$f":"IF(טבלה1[[#This Row],[סיום]]=\"\",\"\",טבלה1[[#This Row],[סיום]]-טבלה1[[#This Row],[התחלה]]+(טבלה1[[#This Row],[סיום]]<טבלה1[[#This Row],[התחלה]]))","v":""}]
[null,null,{"$f":"IF(טבלה1[[#This Row],[סיום]]=\"\",\"\",טבלה1[[#This Row],[סיום]]-טבלה1[[#This Row],[התחלה]]+(טבלה1[[#This Row],[סיום]]<טבלה1[[#This Row],[התחלה]]))","v":""}]
[null,null,{"$f":"IF(טבלה1[[#This Row],[סיום]]=\"\",\"\",טבלה1[[#This Row],[סיום]]-טבלה1[[#This Row],[התחלה]]+(טבלה1[[#This Row],[סיום]]<טבלה1[[#This Row],[התחלה]]))","v":""}]
[null,null,{"$f":"IF(טבלה1[[#This Row],[סיום]]=\"\",\"\",טבלה1[[#This Row],[סיום]]-טבלה1[[#This Row],[התחלה]]+(טבלה1[[#This Row],[סיום]]<טבלה1[[#This Row],[התחלה]]))","v":""}]
[null,null,{"$f":"IF(טבלה1[[#This Row],[סיום]]=\"\",\"\",טבלה1[[#This Row],[סיום]]-טבלה1[[#This Row],[התחלה]]+(טבלה1[[#This Row],[סיום]]<טבלה1[[#This Row],[התחלה]]))","v":""}]
[null,null,{"$f":"IF(טבלה1[[#This Row],[סיום]]=\"\",\"\",טבלה1[[#This Row],[סיום]]-טבלה1[[#This Row],[התחלה]]+(טבלה1[[#This Row],[סיום]]<טבלה1[[#This Row],[התחלה]]))","v":""}]
[null,null,{"$f":"IF(טבלה1[[#This Row],[סיום]]=\"\",\"\",טבלה1[[#This Row],[סיום]]-טבלה1[[#This Row],[התחלה]]+(טבלה1[[#This Row],[סיום]]<טבלה1[[#This Row],[התחלה]]))","v":""}]
[null,null,{"$f":"IF(טבלה1[[#This Row],[סיום]]=\"\",\"\",טבלה1[[#This Row],[סיום]]-טבלה1[[#This Row],[התחלה]]+(טבלה1[[#This Row],[סיום]]<טבלה1[[#This Row],[התחלה]]))","v":""}]
[null,null,{"$f":"IF(טבלה1[[#This Row],[סיום]]=\"\",\"\",טבלה1[[#This Row],[סיום]]-טבלה1[[#This Row],[התחלה]]+(טבלה1[[#This Row],[סיום]]<טבלה1[[#This Row],[התחלה]]))","v":""}]
[null,null,{"$f":"IF(טבלה1[[#This Row],[סיום]]=\"\",\"\",טבלה1[[#This Row],[סיום]]-טבלה1[[#This Row],[התחלה]]+(טבלה1[[#This Row],[סיום]]<טבלה1[[#This Row],[התחלה]]))","v":""}]
[null,null,{"$f":"IF(טבלה1[[#This Row],[סיום]]=\"\",\"\",טבלה1[[#This Row],[סיום]]-טבלה1[[#This Row],[התחלה]]+(טבלה1[[#This Row],[סיום]]<טבלה1[[#This Row],[התחלה]]))","v":""}]
[null,null,{"$f":"IF(טבלה1[[#This Row],[סיום]]=\"\",\"\",טבלה1[[#This Row],[סיום]]-טבלה1[[#This Row],[התחלה]]+(טבלה1[[#This Row],[סיום]]<טבלה1[[#This Row],[התחלה]]))","v":""}]
[null,null,{"$f":"IF(טבלה1[[#This Row],[סיום]]=\"\",\"\",טבלה1[[#This Row],[סיום]]-טבלה1[[#This Row],[התחלה]]+(טבלה1[[#This Row],[סיום]]<טבלה1[[#This Row],[התחלה]]))","v":""}]
[null,null,{"$f":"IF(טבלה1[[#This Row],[סיום]]=\"\",\"\",טבלה1[[#This Row],[סיום]]-טבלה1[[#This Row],[התחלה]]+(טבלה1[[#This Row],[סיום]]<טבלה1[[#This Row],[התחלה]]))","v":""}]
[null,null,{"$f":"IF(טבלה1[[#This Row],[סיום]]=\"\",\"\",טבלה1[[#This Row],[סיום]]-טבלה1[[#This Row],[התחלה]]+(טבלה1[[#This Row],[סיום]]<טבלה1[[#This Row],[התחלה]]))","v":""}]
[null,null,{"$f":"IF(טבלה1[[#This Row],[סיום]]=\"\",\"\",טבלה1[[#This Row],[סיום]]-טבלה1[[#This Row],[התחלה]]+(טבלה1[[#This Row],[סיום]]<טבלה1[[#This Row],[התחלה]]))","v":""}]
[null,null,{"$f":"IF(טבלה1[[#This Row],[סיום]]=\"\",\"\",טבלה1[[#This Row],[סיום]]-טבלה1[[#This Row],[התחלה]]+(טבלה1[[#This Row],[סיום]]<טבלה1[[#This Row],[התחלה]]))","v":""}]
[null,null,{"$f":"IF(טבלה1[[#This Row],[סיום]]=\"\",\"\",טבלה1[[#This Row],[סיום]]-טבלה1[[#This Row],[התחלה]]+(טבלה1[[#This Row],[סיום]]<טבלה1[[#This Row],[התחלה]]))","v":""}]
[null,null,{"$f":"IF(טבלה1[[#This Row],[סיום]]=\"\",\"\",טבלה1[[#This Row],[סיום]]-טבלה1[[#This Row],[התחלה]]+(טבלה1[[#This Row],[סיום]]<טבלה1[[#This Row],[התחלה]]))","v":""}]
[null,null,{"$f":"IF(טבלה1[[#This Row],[סיום]]=\"\",\"\",טבלה1[[#This Row],[סיום]]-טבלה1[[#This Row],[התחלה]]+(טבלה1[[#This Row],[סיום]]<טבלה1[[#This Row],[התחלה]]))","v":""}]
[null,null,{"$f":"IF(טבלה1[[#This Row],[סיום]]=\"\",\"\",טבלה1[[#This Row],[סיום]]-טבלה1[[#This Row],[התחלה]]+(טבלה1[[#This Row],[סיום]]<טבלה1[[#This Row],[התחלה]]))","v":""}]
[null,null,{"$f":"IF(טבלה1[[#This Row],[סיום]]=\"\",\"\",טבלה1[[#This Row],[סיום]]-טבלה1[[#This Row],[התחלה]]+(טבלה1[[#This Row],[סיום]]<טבלה1[[#This Row],[התחלה]]))","v":""}]
[null,null,{"$f":"IF(טבלה1[[#This Row],[סיום]]=\"\",\"\",טבלה1[[#This Row],[סיום]]-טבלה1[[#This Row],[התחלה]]+(טבלה1[[#This Row],[סיום]]<טבלה1[[#This Row],[התחלה]]))","v":""}]
[null,null,{"$f":"IF(טבלה1[[#This Row],[סיום]]=\"\",\"\",טבלה1[[#This Row],[סיום]]-טבלה1[[#This Row],[התחלה]]+(טבלה1[[#This Row],[סיום]]<טבלה1[[#This Row],[התחלה]]))","v":""}]
[null,null,{"$f":"IF(טבלה1[[#This Row],[סיום]]=\"\",\"\",טבלה1[[#This Row],[סיום]]-טבלה1[[#This Row],[התחלה]]+(טבלה1[[#This Row],[סיום]]<טבלה1[[#This Row],[התחלה]]))","v":""}]
[null,null,{"$f":"IF(טבלה1[[#This Row],[סיום]]=\"\",\"\",טבלה1[[#This Row],[סיום]]-טבלה1[[#This Row],[התחלה]]+(טבלה1[[#This Row],[סיום]]<טבלה1[[#This Row],[התחלה]]))","v":""}]
[null,null,{"$f":"IF(טבלה1[[#This Row],[סיום]]=\"\",\"\",טבלה1[[#This Row],[סיום]]-טבלה1[[#This Row],[התחלה]]+(טבלה1[[#This Row],[סיום]]<טבלה1[[#This Row],[התחלה]]))","v":""}]
[null,null,{"$f":"IF(טבלה1[[#This Row],[סיום]]=\"\",\"\",טבלה1[[#This Row],[סיום]]-טבלה1[[#This Row],[התחלה]]+(טבלה1[[#This Row],[סיום]]<טבלה1[[#This Row],[התחלה]]))","v":""}]
[null,null,{"$f":"IF(טבלה1[[#This Row],[סיום]]=\"\",\"\",טבלה1[[#This Row],[סיום]]-טבלה1[[#This Row],[התחלה]]+(טבלה1[[#This Row],[סיום]]<טבלה1[[#This Row],[התחלה]]))","v":""}]
[null,null,{"$f":"IF(טבלה1[[#This Row],[סיום]]=\"\",\"\",טבלה1[[#This Row],[סיום]]-טבלה1[[#This Row],[התחלה]]+(טבלה1[[#This Row],[סיום]]<טבלה1[[#This Row],[התחלה]]))","v":""}]
[null,null,{"$f":"IF(טבלה1[[#This Row],[סיום]]=\"\",\"\",טבלה1[[#This Row],[סיום]]-טבלה1[[#This Row],[התחלה]]+(טבלה1[[#This Row],[סיום]]<טבלה1[[#This Row],[התחלה]]))","v":""}]
[null,null,{"$f":"IF(טבלה1[[#This Row],[סיום]]=\"\",\"\",טבלה1[[#This Row],[סיום]]-טבלה1[[#This Row],[התחלה]]+(טבלה1[[#This Row],[סיום]]<טבלה1[[#This Row],[התחלה]]))","v":""}]
[null,null,{"$f":"IF(טבלה1[[#This Row],[סיום]]=\"\",\"\",טבלה1[[#This Row],[סיום]]-טבלה1[[#This Row],[התחלה]]+(טבלה1[[#This Row],[סיום]]<טבלה1[[#This Row],[התחלה]]))","v":""}]
[null,null,{"$f":"IF(טבלה1[[#This Row],[סיום]]=\"\",\"\",טבלה1[[#This Row],[סיום]]-טבלה1[[#This Row],[התחלה]]+(טבלה1[[#This Row],[סיום]]<טבלה1[[#This Row],[התחלה]]))","v":""}]
[null,null,{"$f":"IF(טבלה1[[#This Row],[סיום]]=\"\",\"\",טבלה1[[#This Row],[סיום]]-טבלה1[[#This Row],[התחלה]]+(טבלה1[[#This Row],[סיום]]<טבלה1[[#This Row],[התחלה]]))","v":""}]
[null,null,{"$f":"IF(טבלה1[[#This Row],[סיום]]=\"\",\"\",טבלה1[[#This Row],[סיום]]-טבלה1[[#This Row],[התחלה]]+(טבלה1[[#This Row],[סיום]]<טבלה1[[#This Row],[התחלה]]))","v":""}]
[null,null,{"$f":"IF(טבלה1[[#This Row],[סיום]]=\"\",\"\",טבלה1[[#This Row],[סיום]]-טבלה1[[#This Row],[התחלה]]+(טבלה1[[#This Row],[סיום]]<טבלה1[[#This Row],[התחלה]]))","v":""}]
[null,null,{"$f":"IF(טבלה1[[#This Row],[סיום]]=\"\",\"\",טבלה1[[#This Row],[סיום]]-טבלה1[[#This Row],[התחלה]]+(טבלה1[[#This Row],[סיום]]<טבלה1[[#This Row],[התחלה]]))","v":""}]
[null,null,{"$f":"IF(טבלה1[[#This Row],[סיום]]=\"\",\"\",טבלה1[[#This Row],[סיום]]-טבלה1[[#This Row],[התחלה]]+(טבלה1[[#This Row],[סיום]]<טבלה1[[#This Row],[התחלה]]))","v":""}]
[null,null,{"$f":"IF(טבלה1[[#This Row],[סיום]]=\"\",\"\",טבלה1[[#This Row],[סיום]]-טבלה1[[#This Row],[התחלה]]+(טבלה1[[#This Row],[סיום]]<טבלה1[[#This Row],[התחלה]]))","v":""}]
[null,null,{"$f":"IF(טבלה1[[#This Row],[סיום]]=\"\",\"\",טבלה1[[#This Row],[סיום]]-טבלה1[[#This Row],[התחלה]]+(טבלה1[[#This Row],[סיום]]<טבלה1[[#This Row],[התחלה]]))","v":""}]
[null,null,{"$f":"IF(טבלה1[[#This Row],[סיום]]=\"\",\"\",טבלה1[[#This Row],[סיום]]-טבלה1[[#This Row],[התחלה]]+(טבלה1[[#This Row],[סיום]]<טבלה1[[#This Row],[התחלה]]))","v":""}]
[null,null,{"$f":"IF(טבלה1[[#This Row],[סיום]]=\"\",\"\",טבלה1[[#This Row],[סיום]]-טבלה1[[#This Row],[התחלה]]+(טבלה1[[#This Row],[סיום]]<טבלה1[[#This Row],[התחלה]]))","v":""}]
[null,null,{"$f":"IF(טבלה1[[#This Row],[סיום]]=\"\",\"\",טבלה1[[#This Row],[סיום]]-טבלה1[[#This Row],[התחלה]]+(טבלה1[[#This Row],[סיום]]<טבלה1[[#This Row],[התחלה]]))","v":""}]
[null,null,{"$f":"IF(טבלה1[[#This Row],[סיום]]=\"\",\"\",טבלה1[[#This Row],[סיום]]-טבלה1[[#This Row],[התחלה]]+(טבלה1[[#This Row],[סיום]]<טבלה1[[#This Row],[התחלה]]))","v":""}]
[null,null,{"$f":"IF(טבלה1[[#This Row],[סיום]]=\"\",\"\",טבלה1[[#This Row],[סיום]]-טבלה1[[#This Row],[התחלה]]+(טבלה1[[#This Row],[סיום]]<טבלה1[[#This Row],[התחלה]]))","v":""}]
[null,null,{"$f":"IF(טבלה1[[#This Row],[סיום]]=\"\",\"\",טבלה1[[#This Row],[סיום]]-טבלה1[[#This Row],[התחלה]]+(טבלה1[[#This Row],[סיום]]<טבלה1[[#This Row],[התחלה]]))","v":""}]
[null,null,{"$f":"IF(טבלה1[[#This Row],[סיום]]=\"\",\"\",טבלה1[[#This Row],[סיום]]-טבלה1[[#This Row],[התחלה]]+(טבלה1[[#This Row],[סיום]]<טבלה1[[#This Row],[התחלה]]))","v":""}]
[null,null,{"$f":"IF(טבלה1[[#This Row],[סיום]]=\"\",\"\",טבלה1[[#This Row],[סיום]]-טבלה1[[#This Row],[התחלה]]+(טבלה1[[#This Row],[סיום]]<טבלה1[[#This Row],[התחלה]]))","v":""}]
[null,null,{"$f":"IF(טבלה1[[#This Row],[סיום]]=\"\",\"\",טבלה1[[#This Row],[סיום]]-טבלה1[[#This Row],[התחלה]]+(טבלה1[[#This Row],[סיום]]<טבלה1[[#This Row],[התחלה]]))","v":""}]
[null,null,{"$f":"IF(טבלה1[[#This Row],[סיום]]=\"\",\"\",טבלה1[[#This Row],[סיום]]-טבלה1[[#This Row],[התחלה]]+(טבלה1[[#This Row],[סיום]]<טבלה1[[#This Row],[התחלה]]))","v":""}]
[null,null,{"$f":"IF(טבלה1[[#This Row],[סיום]]=\"\",\"\",טבלה1[[#This Row],[סיום]]-טבלה1[[#This Row],[התחלה]]+(טבלה1[[#This Row],[סיום]]<טבלה1[[#This Row],[התחלה]]))","v":""}]
[null,null,{"$f":"IF(טבלה1[[#This Row],[סיום]]=\"\",\"\",טבלה1[[#This Row],[סיום]]-טבלה1[[#This Row],[התחלה]]+(טבלה1[[#This Row],[סיום]]<טבלה1[[#This Row],[התחלה]]))","v":""}]
[null,null,{"$f":"IF(טבלה1[[#This Row],[סיום]]=\"\",\"\",טבלה1[[#This Row],[סיום]]-טבלה1[[#This Row],[התחלה]]+(טבלה1[[#This Row],[סיום]]<טבלה1[[#This Row],[התחלה]]))","v":""}]
[null,null,{"$f":"IF(טבלה1[[#This Row],[סיום]]=\"\",\"\",טבלה1[[#This Row],[סיום]]-טבלה1[[#This Row],[התחלה]]+(טבלה1[[#This Row],[סיום]]<טבלה1[[#This Row],[התחלה]]))","v":""}]
[null,null,{"$f":"IF(טבלה1[[#This Row],[סיום]]=\"\",\"\",טבלה1[[#This Row],[סיום]]-טבלה1[[#This Row],[התחלה]]+(טבלה1[[#This Row],[סיום]]<טבלה1[[#This Row],[התחלה]]))","v":""}]
[null,null,{"$f":"IF(טבלה1[[#This Row],[סיום]]=\"\",\"\",טבלה1[[#This Row],[סיום]]-טבלה1[[#This Row],[התחלה]]+(טבלה1[[#This Row],[סיום]]<טבלה1[[#This Row],[התחלה]]))","v":""}]
[null,null,{"$f":"IF(טבלה1[[#This Row],[סיום]]=\"\",\"\",טבלה1[[#This Row],[סיום]]-טבלה1[[#This Row],[התחלה]]+(טבלה1[[#This Row],[סיום]]<טבלה1[[#This Row],[התחלה]]))","v":""}]
[null,null,{"$f":"IF(טבלה1[[#This Row],[סיום]]=\"\",\"\",טבלה1[[#This Row],[סיום]]-טבלה1[[#This Row],[התחלה]]+(טבלה1[[#This Row],[סיום]]<טבלה1[[#This Row],[התחלה]]))","v":""}]
[null,null,{"$f":"IF(טבלה1[[#This Row],[סיום]]=\"\",\"\",טבלה1[[#This Row],[סיום]]-טבלה1[[#This Row],[התחלה]]+(טבלה1[[#This Row],[סיום]]<טבלה1[[#This Row],[התחלה]]))","v":""}]
[null,null,{"$f":"IF(טבלה1[[#This Row],[סיום]]=\"\",\"\",טבלה1[[#This Row],[סיום]]-טבלה1[[#This Row],[התחלה]]+(טבלה1[[#This Row],[סיום]]<טבלה1[[#This Row],[התחלה]]))","v":""}]
[null,null,{"$f":"IF(טבלה1[[#This Row],[סיום]]=\"\",\"\",טבלה1[[#This Row],[סיום]]-טבלה1[[#This Row],[התחלה]]+(טבלה1[[#This Row],[סיום]]<טבלה1[[#This Row],[התחלה]]))","v":""}]
[null,null,{"$f":"IF(טבלה1[[#This Row],[סיום]]=\"\",\"\",טבלה1[[#This Row],[סיום]]-טבלה1[[#This Row],[התחלה]]+(טבלה1[[#This Row],[סיום]]<טבלה1[[#This Row],[התחלה]]))","v":""}]
[null,null,{"$f":"IF(טבלה1[[#This Row],[סיום]]=\"\",\"\",טבלה1[[#This Row],[סיום]]-טבלה1[[#This Row],[התחלה]]+(טבלה1[[#This Row],[סיום]]<טבלה1[[#This Row],[התחלה]]))","v":""}]
[null,null,{"$f":"IF(טבלה1[[#This Row],[סיום]]=\"\",\"\",טבלה1[[#This Row],[סיום]]-טבלה1[[#This Row],[התחלה]]+(טבלה1[[#This Row],[סיום]]<טבלה1[[#This Row],[התחלה]]))","v":""}]
[null,null,{"$f":"IF(טבלה1[[#This Row],[סיום]]=\"\",\"\",טבלה1[[#This Row],[סיום]]-טבלה1[[#This Row],[התחלה]]+(טבלה1[[#This Row],[סיום]]<טבלה1[[#This Row],[התחלה]]))","v":""}]
[]
["נוצר ע\"י שמואל"]
["abc0533118127@gmail.com"]

{"sheet":"סך שעות","index":1,"n_rows":83,"n_cols":8,"rows_kept":83,"cut":false,"hidden":false,"merged":[[82,0,82,1],[2,0,2,2],[0,0,1,2],[1,4,1,5],[1,7,1,8],[2,4,3,5],[2,6,3,6],[2,7,3,8],[81,0,81,1]]}
["חישוב שעות עבודה"]
[null,null,null,null,"סה\"כ שעות",null,"שכר לשעה","לתשלום"]
["רשום את סך השעות שעבדת",null,null,null,{"$f":"SUM(טבלה13[סך השעות])","v":0},null,30,{"$f":"G3*E3*24","v":0}]
["סך השעות","הערות","תאריך"]
[]
[]
[]
[]
[]
[]
[]
[]
[]
[]
[]
[]
[]
[]
[]
[]
[]
[]
[]
[]
[]
[]
[]
[]
[]
[]
[]
[]
[]
[]
[]
[]
[]
[]
[]
[]
[]
[]
[]
[]
[]
[]
[]
[]
[]
[]
[]
[]
[]
[]
[]
[]
[]
[]
[]
[]
[]
[]
[]
[]
[]
[]
[]
[]
[]
[]
[]
[]
[]
[]
[]
[]
[]
[]
[]
[]
[]
["נוצר ע\"י שמואל"]
["abc0533118127@gmail.com"]